Cogmind - Beta 12 @@@ ROGUE MODE // 2023.04.28 @ 23:51:56 Player: Ms Vella Result: Destroyed by D-53 Grenadier with Mini Grenade Launcher Performance ------------- Evolutions (0) 0 Regions Visited (2) 400 Robots Destroyed (14) 70 Value Destroyed (308) 308 Prototype IDs (7) 140 Alien Tech Used (0) 0 Bonus (0) 0 TOTAL SCORE: 918 Bonus ------- None Cogmind --------- Core Integrity 0/250 Matter 146/300 Energy 92/100 System Corruption 0% Temperature Cool (5) Movement Core (150) Ox2 Location -10/Mines Parts ------- > --- POWER (1) -------- (None) > --- PROPULSION (2) --- (None) > --- UTILITY (2) ------ Small Storage Unit > --- WEAPON (2) ------- EM Pulse Gun > --- INVENTORY (8) ---- Light Treads Light Treads Hacking Suite EM Pulse Gun EM Pulse Gun Light Cannon Light Cannon Grenade Launcher Peak State ------------ > --- POWER ------------ Ion Engine > --- PROPULSION ------- Light Treads Light Treads > --- UTILITY ---------- Small Storage Unit > --- WEAPON ----------- EM Pulse Gun Light Cannon > --- INVENTORY -------- Light Treads Light Treads Hacking Suite EM Pulse Gun Light Cannon Light Cannon Light Cannon Grenade Launcher [Rating: 7] Favorites ----------- Power Ion Engine Engine Ion Engine Propulsion Light Treads Treads Light Treads Leg Aluminum Leg Utility Small Storage Unit Storage Small Storage Unit Weapon EM Pulse Gun Energy Gun EM Pulse Gun Ballistic Gun Assault Rifle Ballistic Cannon Light Cannon Launcher Grenade Launcher Build | -11 -10 -10 ------- Run | Jun Mat Min Slots Evolved . | . . . Power . | . . . Propulsion . | . . . Utility . | . . . Weapon . | . . . Parts Attached 12 | 3 7 2 Power 5 | 1 4 . Engine 5 | 1 4 . Core . | . . . Reactor . | . . . Propulsion 4 | 2 2 . Treads 4 | 2 2 . Leg . | . . . Wheel . | . . . Hover . | . . . Flight . | . . . Utility . | . . . Device . | . . . Storage . | . . . Processor . | . . . Hackware . | . . . Protection . | . . . Artifact . | . . . Weapon 3 | . 1 2 Energy Gun . | . . . Energy Cannon . | . . . Ballistic Gun . | . . . Ballistic Cannon 2 | . 1 1 Launcher 1 | . . 1 Special Weapon . | . . . Impact Weapon . | . . . Slashing Weapon . | . . . Piercing Weapon . | . . . Special Melee Weapon . | . . . Unidentified Prototypes . | . . . Parts Lost 4 | . . 4 Power 1 | . . 1 Propulsion 2 | . . 2 Utility . | . . . Weapon 1 | . . 1 Highest Loss Streak 3 | . . 3 To Critical Strikes 1 | . . 1 Average Slot Usage (%) 84 | . 84 82 Engine 13 | . 13 13 Treads 27 | . 28 26 Storage 14 | . 14 14 Energy Gun 14 | . 14 14 Ballistic Gun 7 | . 8 . Ballistic Cannon 6 | . 5 11 Naked Turns . | . . . Heaviest Build 15 | 14 15 15 Greatest Support 40 | 40 40 40 Greatest Overweight (x) . | . . . Average Overweight (x) . | . . . Largest Inventory Capacity 8 | 8 8 8 Average Capacity 8 | 8 8 8 Most Carried 8 | 8 8 8 Average Carried 7 | 4 7 8 Final Capacity 8 | 8 8 8 Final Carried 8 | 4 8 8 Class Distribution -------------------- 100% | Mutant Dominant Class ---------------- Mutant | -10/Materials Mutant | -10/Mines Resources | -11 -10 -10 ----------- Run | Jun Mat Min Matter Collected 433 | 211 210 12 Remotely . | . . . Salvage Created 670 | . 596 74 Parts 24 | . 24 . Haulers Intercepted 1 | . 1 . Recyclers Shooed 4 | . 4 . Parts Field Recycled . | . . . Retrieved Matter . | . . . Parts Self-Destructed . | . . . Prevented . | . . . Kills | -11 -10 -10 ------- Run | Jun Mat Min Combat Hostiles Destroyed 18 | . 7 11 Guns 5 | . 5 . Cannons 2 | . 2 . AOE 11 | . . 11 Classes Destroyed 6 | . 5 1 Builder 1 | . 1 . Hauler 1 | . 1 . Recycler 4 | . 3 1 Operator 1 | . 1 . Grunt 7 | . 7 . Assembled 11 | . . 11 Best Kill Streak 12 | . 3 12 Combat Bots Only 11 | . 2 11 Max Kills in Single Turn 3 | . 1 3 Gunslinging . | . . . Exploded 3 | . . 3 Melee . | . . . Uniques/NPCs Destroyed . | . . . Combat | -11 -10 -10 -------- Run | Jun Mat Min Damage Taken 801 | . 267 534 Core 258 | . 89 169 Absorbed by Shields . | . . . Regen/Repaired (Parts) 23 | . 23 . Core Remaining (%) 100 | 100 . . Volleys Fired 58 | . 39 19 Largest 2 | . 2 2 Hottest 75 | . 75 75 Shots Fired 101 | . 78 23 Gun 78 | . 74 4 Cannon 8 | . 4 4 Launcher 15 | . . 15 Special . | . . . Kinetic 43 | . 39 4 Thermal . | . . . Explosive 15 | . . 15 Electromagnetic 43 | . 39 4 Robot Hit Streak 6 | . 6 6 Robot Miss Streak 4 | . 4 1 Penetration Max . | . . . Secondary Targets 1 | . 1 . Max Gunslinging Chain 1 | . 1 . Shots Hit Robots 62 | . 46 16 Core Hits 42 | . 20 22 Critical Kills . | . . . Critical Parts Destroyed . | . . . Critical Strikes 1 | . 1 . Corrupt 1 | . 1 . Melee Attacks . | . . . Impact . | . . . Slashing . | . . . Piercing . | . . . Sneak Attacks . | . . . Combat Hostiles . | . . . Follow-up Attacks . | . . . Damage Inflicted 1511 | . 613 898 Guns 577 | . 541 36 Cannons 119 | . 67 52 Explosions 810 | . . 810 Melee . | . . . Ramming 5 | . 5 . Kinetic 363 | . 311 52 Thermal . | . . . Explosive 810 | . . 810 Electromagnetic 333 | . 297 36 Impact . | . . . Slashing . | . . . Piercing . | . . . Highest Corruption . | . . . Average Corruption . | . . . Corruption Purged . | . . . Corruption Blocked . | . . . Overload Shots . | . . . Overflow Damage 44 | . . 44 Projectiles . | . . . Explosions 44 | . . 44 Melee . | . . . Knockbacks . | . . . Impact . | . . . Kinetic . | . . . Secondary . | . . . Self-Inflicted Damage 48 | . . 48 Shots 2 | . . 2 Rammed 1 | . 1 . Targets Rammed 1 | . 1 . Kicked . | . . . Crushed . | . . . Highest Temperature 81 | . 47 81 Average Temperature 19 | . 17 31 Received Heat Transfer 186 | . 135 51 Siege Activations . | . . . Robots Corrupted . | . . . Combat Hostiles . | . . . Parts Fried . | . . . Impact Corruptions . | . . . Robots Melted . | . . . Combat Hostiles . | . . . Parts Melted . | . . . Heat Transferred . | . . . Parts Sabotaged . | . . . Parts Stolen . | . . . Parts Stripped . | . . . Power Chain Reactions . | . . . Missiles Intercepted . | . . . Alert | -11 -10 -10 ------- Run | Jun Mat Min Peak Influence 162 | . 162 100 Initial 33 | . . 33 Average 43 | . 43 43 Maximum Alert Level . | . . . Low Security (%) 100 | 100 100 100 Level 1 . | . . . Level 2 . | . . . Level 3 . | . . . Level 4 . | . . . Level 5 . | . . . High Security . | . . . Max Security . | . . . Squads Dispatched 3 | . 3 . Investigation 1 | . 1 . Extermination . | . . . Reinforcement 2 | . 2 . Assault . | . . . Garrison . | . . . Intercept . | . . . Searches Triggered . | . . . Construction Impeded . | . . . Haulers Reinforced . | . . . Active Scanning Responses . | . . . Cargo Convoy Interrupts . | . . . Stealth | -11 -10 -10 --------- Run | Jun Mat Min Distress Signals 3 | . 3 . Communications Jammed . | . . . Distress Signals . | . . . Times Spotted 43 | . 25 18 Peak Tracking Total 5 | . 5 5 Tactical Retreats 1 | . 1 . Traps | -11 -10 -10 ------- Run | Jun Mat Min Traps Triggered 3 | . 3 . Indirectly . | . . . Trap Hack Attempts . | . . . Triggered . | . . . Disarmed . | . . . Reprogrammed . | . . . Reused . | . . . Traps Extracted . | . . . Installed 1 | . . 1 Triggered . | . . . Machines | -11 -10 -10 ---------- Run | Jun Mat Min Machines Disabled 1 | . 1 . Max in Single Turn 1 | . 1 . Machines Repaired . | . . . Machines Sabotaged . | . . . Overloaded Fab Kills . | . . . Hacking | -11 -10 -10 --------- Run | Jun Mat Min Machines Accessed 9 | . 9 . Terminals 8 | . 8 . Fabricators . | . . . Repair Stations 1 | . 1 . Recycling Units . | . . . Scanalyzers . | . . . Garrison Access . | . . . Total Hacks 24 | . 24 . Successful 16 | . 16 . Failed 8 | . 8 . Catastrophic 1 | . 1 . Database Lockouts . | . . . Manual 12 | . 12 . Terminals 22 | . 22 . Fabricators . | . . . Repair Stations 2 | . 2 . Recycling Units . | . . . Scanalyzers . | . . . Garrison Access . | . . . Terminal Hacks 10 | . 10 . Part Schematic 1 | . 1 . Prototype ID Bank 5 | . 5 . Branch Access Points 1 | . 1 . Terminal Index 1 | . 1 . Locate Traps 1 | . 1 . Zone Layout 1 | . 1 . Fabricator Hacks . | . . . Repair Station Hacks 2 | . 2 . Scan Component 1 | . 1 . Repair 1 | . 1 . Recycling Unit Hacks . | . . . Scanalyzer . | . . . Garrison Access Hacks . | . . . Unauthorized Hacks 4 | . 4 . Terminals 4 | . 4 . Botnet 4 | . 4 . Fabricators . | . . . Repair Stations . | . . . Recycling Units . | . . . Scanalyzers . | . . . Garrison Access . | . . . Data Cores Recovered . | . . . Used . | . . . Hacking Detections 8 | . 8 . Full Trace Events . | . . . Feedback Events . | . . . Feedback Blocked . | . . . Robot Schematics Acquired . | . . . Robots Built . | . . . Authchips . | . . . Time . | . . . Total Robot Build Rating . | . . . Part Schematics Acquired 1 | . 1 . Parts Built . | . . . Authchips . | . . . Time . | . . . Total Part Build Rating . | . . . Parts Repaired 1 | . 1 . Time 26 | . 26 . Parts Recycled . | . . . Recycled Matter . | . . . Retrieved Matter . | . . . Retrieved Components . | . . . Parts Scanalyzed . | . . . Part Schematics Acquired . | . . . Parts Damaged . | . . . Bothacking | -11 -10 -10 ------------ Run | Jun Mat Min Used RIF Installer . | . . . Robots Hacked . | . . . Non-combat . | . . . Combat . | . . . Robot Hacks Applied . | . . . Relay Couplers Released . | . . . Fabnet Peak Effective % . | . . . Robots Rewired . | . . . Allies Hacked . | . . . Hacks Repelled . | . . . Allies | -11 -10 -10 -------- Run | Jun Mat Min Total Allies . | . . . Largest Group . | . . . Highest-Rated Group . | . . . Highest-Rated Ally . | . . . Total Orders . | . . . Ally Attacks . | . . . Total Damage . | . . . Kills . | . . . Allies Corrupted . | . . . Allies Melted . | . . . Intel | -11 -10 -10 ------- Run | Jun Mat Min Robot Analysis Total . | . . . Derelict Logs Recovered 1 | . . 1 Drone Launches . | . . . Drone Recoveries . | . . . Exploration | -11 -10 -10 ------------- Run | Jun Mat Min Turns Passed 2220 | 15 1863 342 Spaces Moved 1248 | 6 1061 181 Core . | . . . Treads 1248 | 6 1061 181 Legs . | . . . Wheels . | . . . Hover . | . . . Flight . | . . . Fastest Speed 160 | 160 160 160 Average Speed 160 | 160 160 160 Slowest Speed 160 | 160 160 160 Overloaded Moves . | . . . Propulsion Burnouts . | . . . Robots Hopped . | . . . Cave-ins Triggered . | . . . Exploration Rate (%) 44 | 2 98 34 Regions Visited 2 Branch Regions 1 Pre-discovered Areas . | . . . Known Exits Taken 1 | . 1 . Unknown Exits Taken 1 | 1 . . Scrap Searched 1 | . . 1 Spaces Dug . | . . . Terrain Destroyed 97 | . . 97 Melee . | . . . Projectile . | . . . AOE 97 | . . 97 Terrain Rammed . | . . . Walls Destroyed . | . . . Machines Disabled . | . . . Actions | -11 -10 -10 --------- Run | Jun Mat Min Total 1371 | 13 1148 210 Wait 33 | . 26 7 Move 1246 | 5 1060 181 Hop . | . . . Pick Up 10 | 1 9 . Fast Attach 5 | . 5 . Attach 2 | 2 . . Detach 1 | 1 . . Swap 5 | 1 2 2 Drop 9 | 3 6 . Fire 58 | . 39 19 Melee . | . . . Ram . | . . . Kick . | . . . Crush 1 | . 1 . Escape Stasis . | . . . Rewire . | . . . Trap 1 | . . 1 Miscellaneous . | . . . Route ------- -11/Junkyard -10/Materials (discovered 5 exits: [*Mat x3] / *Min x2) -10/Mines History --------- Turn | Location | Event 8 | -11/Junkyard | Discovered new exit (range 3) 16 | -11/Junkyard | Entered Materials 86 | -10/Materials | Identified exit to Mines 144 | -10/Materials | Met 8R-AWN 313 | -10/Materials | Build established: Mutant 586 | -10/Materials | Discovered new exit (range 5) 632 | -10/Materials | Repaired Ion Engine 742 | -10/Materials | Discovered new exit (range 15) 1416 | -10/Materials | Discovered new exit (range 13) 1879 | -10/Materials | Entered Mines 1880 | -10/Mines | Followed 8R-AWN into the Mines 1912 | -10/Mines | Learned Materials stockpile data 1947 | -10/Mines | Found a hidden stash of uninstalled traps 2140 | -10/Mines | Assembled infested the area 2213 | -10/Mines | Destroyed 11 combat bots 2216 | -10/Mines | Core integrity fell below 50% 2221 | -10/Mines | Core integrity fell below 20% 2221 | -10/Mines | Destroyed by D-53 Grenadier with Mini Grenade Launcher Last Messages --------------- 02180_ as-55156 destroyed. 02181_ The unstable cave ceiling collapses. 02182_ Lgt. Treads destroyed. 02186_ Destroyed Asb. Hover Unit. 02186_ as-89733 destroyed. 02188_ as-25489 destroyed. 02191_ The unstable cave ceiling collapses. 02192_ Destroyed Asb. Hover Unit. 02192_ as-67351 destroyed. 02194_ The unstable cave ceiling collapses. 02206_ Acquired 4 matter. 02213_ The unstable cave ceiling collapses. 02213_ C-30 ARC bursts open, deploying its payload. 02213_ D-53 Grenadier unfolds itself. 02214_ The unstable cave ceiling collapses. 02217_ Ion Engine destroyed. 02217_ as-25983 destroyed. 02218_ Lgt. Treads destroyed. 02219_ Critical hit (Destroy). 02219_ Lgt. Cannon destroyed. Map ----- +----------------------------------------------------+ | ?????## ##?????????????????????????????????????? | | ?????# ##????????????????????????????????????? | | ?????# ##??????????####?### ????????????????? | | ?????# #######???# ## ????????????????? | | ?????## ## ##?# ???????????????? | | ??????### ## ???????????????? | | ????????##### ???????????????? | | ######??????### ???????????????? | | #????????## ???????????????? | | ############ #???????????????????? | | ### ### ##???????????????????? | | ??# ##????????????????????????? | | ??################ #?????????????????????????? | | ?????????????????# #????????????????????????? | | ?????????????????# #????????????????????????? | | ?????????????????# #????????????????????????? | | ?????????????????## #???????????????????????? | | ??????????????????### #???????????????????????? | | ????????????????????## ##???????????????????????? | | ??????????????????????######?????????????????????? | | ??????????????####??##### ##????????????????????? | | ??????????##### #### ##???????????????????? | | ??????????# # ##??????????????????? | | ###???##### #??????????????????? | | ##### d #??????????????????? | | % d= [ @ #??????????????????? | | %% ## # # #??????????????? | | %######### ## #????????????? | | ###???????#### # # #???????????? | | ?????????????## aa ?????????? | | ??????????????### ## ??????????? | | ????????????????## ### ??????????? | | ?????????????????# #?? # ??????????? | | ?????????????????# ? < ###?## ???????????? | | ?????????????????##### ####?????????????????? | | ?????????????????????## ##????????????????????? | | ???????????????????????#####?????????????????????? | | ?????????????????????????????????????????????????? | | | | | | | | | | | | | | | | | | | | | | | | | +----------------------------------------------------+ Best States ------------- Heat Dissipation 25 Energy Generation 10 Energy Capacity 250 Matter Stores 300 Matter Capacity 300 Sight Range 16 Terrain Scan Density 10 Evasion (%) 40 Recoil Reduction 2 Item Schematics ----------------- Hcp. Storage Unit | -10/Materials | Hacked Robot Schematics ------------------ None Fabricated ------------ Nothing Alien Tech Used ----------------- None Achievements -------------- None Challenges ------------ None Game ------ Seed EnergyFluxPerforator Manual? 0 Play Time 00:19:32 Cumulative 59.9 hours Start 2023.04.28 @ 23:31:53 End 2023.04.28 @ 23:51:56 Sessions 1 Manual Loads 0 Difficulty Rogue Special Mode None Game No. 55 Rogue 10 Adventurer 19 Explorer 26 Win Type - Total 0 Types 0/0/0/0/0/0/0/0/0 Lore% 16 Gallery% 41 Achievement% 66 Wizard Run 0 Options --------- ASCII 0 Keyboard 0 Movement Mouse Keybinds 0 Fullscreen 0 Font 16/Smallcaps Map View 76x50 Tactical HUD 1 Map Filters NONE Filters BRIGHTNESS(125)|SATURATION(75)|LOW_CONTRAST(13,24,33)|SHIFT_HUE(130) Steam 1 RUN: d4cbd768-cc8b-4e1d-93a2-6c74111efd84